bitfinex/quotes_SOLUSD_20250830
["timestamp","ask_amount","ask_price","bid_price","bid_amount"]
[1756544310624,18.29682559,203.36,203.32,0.72]
[1756544310937,4.70123158,203.34,203.29,0.72]
[1756544311119,4.70123158,203.34,203.3,0.67]
[1756544311321,4.70123158,203.34,203.31,0.67]
[1756544311814,4.70123158,203.35,203.32,0.67]
[1756544312044,50.49883778,203.36,203.33,0.67]
[1756544312322,9.61883778,203.36,203.33,0.67]
[1756544312624,4.70123158,203.4,203.34,5.37123158]
[1756544312814,4.05976801,203.47,203.24,17.22101948]
[1756544312815,4.91448791,203.48,203.39,4.70123158]
[1756544313142,0.42,203.53,203.42,4.70123158]
[1756544313421,4.70123158,203.47,203.43,0.67]
[1756544313613,4.70123158,203.47,203.44,0.67]
[1756544313814,45.87368151,203.52,203.44,0.67]
[1756544313815,4.91431344,203.49,203.44,0.67]
[1756544314020,4.70123158,203.48,203.45,0.67]
[1756544314814,9.61554502,203.49,203.45,0.67]
[1756544315015,40.96,203.5,203.46,0.67]
[1756544315226,4.70123158,203.49,203.46,0.67]
[1756544315422,7.52612709,203.49,203.46,0.67]
[1756544315623,7.52612709,203.47,203.43,0.67]
[1756544315810,48.44612709,203.49,203.44,0.67]
[1756544316013,7.52612709,203.47,203.44,0.67]
[1756544316225,7.52612709,203.47,203.42,7.52612709]
[1756544316438,7.52612709,203.47,203.44,0.67]
[1756544316627,7.52612709,203.47,203.42,7.52612709]
[1756544316926,7.52612709,203.48,203.44,0.67]
[1756544317112,12.44067682,203.48,203.44,0.67]
[1756544318304,7.52612709,203.48,203.44,0.67]
[1756544319830,12.44038762,203.49,203.44,0.67]
[1756544320035,12.44038762,203.49,203.45,0.67]
[1756544320224,33.52612709,203.46,203.39,0.67]
[1756544320416,7.52612709,203.45,203.39,8.19612709]
[1756544321431,4.91538453,203.45,203.4,8.19612709]
[1756544321626,12.44151162,203.45,203.41,0.67]
[1756544321817,45.75495969,203.47,203.42,0.67]
[1756544322030,7.52612709,203.46,203.43,0.67]
[1756544322222,13.59559401,203.43,203.36,7.526127]
[1756544322435,72.7917833,203.47,203.33,0.03]
[1756544322436,47.1217211,203.37,203.33,0.03]
[1756544322746,7.52612709,203.34,203.33,0.03]
[1756544323441,12.44399863,203.34,203.33,0.03]
[1756544324538,52.60175421,203.34,203.33,1e-08]
[1756544324844,59.43158663,203.34,203.33,1e-08]
[1756544325044,56.19662678,203.34,203.33,1e-08]
[1756544325226,48.67049969,203.34,203.33,1e-08]
[1756544325430,74.46997904,203.34,203.33,1e-08]
[1756544325939,74.48997904,203.34,203.33,1e-08]
[1756544326128,74.46997904,203.34,203.33,1e-08]
[1756544326732,39.59559401,203.3,203.12,2.56730023]
[1756544327063,39.59559401,203.3,203.2,0.67]
[1756544327064,7.52612709,203.23,203.2,0.67]
[1756544327434,7.52612709,203.23,203.21,0.67]
[1756544327645,7.52612709,203.23,203.22,0.67]
[1756544328244,7.52612709,203.23,203.13,0.67]
[1756544328245,5.34070878,203.23,203.13,0.67]
[1756544328413,41.16,203.22,203.15,7.52612709]
[1756544328743,41.16,203.22,203.08,7.526127]
[1756544328744,7.52612709,203.16,203.08,7.526127]
[1756544328926,13.59559401,203.22,203.13,0.67]
[1756544328927,41.2,203.17,203.13,0.67]
[1756544329248,41.2,203.17,203.1,7.52612709]
[1756544329249,7.52612709,203.15,203.14,0.67]
[1756544329433,7.52612709,203.17,203.15,0.67]
[1756544329620,7.52612709,203.18,203.16,0.67]
[1756544329824,7.52612709,203.17,203.16,0.67]
[1756544330024,7.52612709,203.21,203.17,0.67]
[1756544330221,7.52612709,203.22,203.17,8.19612709]
[1756544330434,13.59559401,203.22,203.15,0.67]
[1756544330649,7.52612709,203.16,203.12,0.67]
[1756544330944,7.52612709,203.13,203.12,0.67]
[1756544331940,7.52612709,203.13,203.05,26.0]
[1756544331941,7.52612709,203.13,203.1,0.67]
[1756544332123,7.52612709,203.13,203.11,0.67]
[1756544332325,41.24,203.16,203.12,0.67]
[1756544332525,7.52612709,203.15,203.12,0.67]
[1756544332728,41.24,203.16,203.03,4.92533113]
[1756544332729,7.52612709,203.13,203.03,4.92533113]
[1756544332924,7.52612709,203.12,203.09,0.67]
[1756544333138,26.0,203.13,203.04,7.52612709]
[1756544333444,26.0,203.13,202.97,41.22]
[1756544333445,48.78612709,203.13,203.08,8.19612709]
[1756544333618,48.78612709,203.13,203.09,0.67]
[1756544333823,48.78612709,203.13,203.1,0.67]
[1756544334038,7.52612709,203.11,203.07,0.67]
[1756544334238,7.52612709,203.1,203.08,0.67]
[1756544334445,7.52612709,203.11,203.08,0.67]
[1756544335162,7.52612709,203.11,203.05,7.52612709]
[1756544335163,7.52612709,203.09,202.98,2.56910413]
[1756544335335,14.01559401,203.12,203.02,0.67]
[1756544335657,7.52612709,203.08,203.02,8.19612709]
[1756544335873,7.52612709,203.07,203.02,8.19612709]
[1756544336032,7.52612709,203.07,203.03,0.67]
[1756544336228,7.52612709,203.07,203.04,0.67]
[1756544336452,41.24,203.12,203.05,0.67]
[1756544336762,7.52612709,203.11,203.05,0.67]
[1756544336930,7.52612709,203.1,203.05,8.19612709]
[1756544337233,7.52612709,203.09,203.06,0.67]
[1756544337443,41.26,203.11,203.06,0.67]
[1756544337444,7.52612709,203.1,203.06,0.67]
[1756544337828,7.52612709,203.09,203.03,0.67]
[1756544338167,7.52612709,203.08,203.03,8.19612709]
[1756544338373,7.52612709,203.08,203.04,0.67]
[1756544338671,41.24,203.09,203.05,8.19612709]
[1756544338967,41.24,203.13,203.07,7.52612709]
[1756544339132,7.52612709,203.12,203.07,7.52612709]
[1756544339332,41.24,203.13,203.08,0.67]
[1756544339636,7.52612709,203.12,203.08,0.67]
[1756544340268,4.9223123,203.16,203.09,8.19612709]
[1756544340437,7.52612709,203.13,203.07,8.19612709]
[1756544340643,48.82612709,203.13,203.07,8.19612709]
[1756544341241,18.51754132,203.18,203.09,7.52612709]
[1756544341465,7.52612709,203.15,203.1,0.69]
[1756544341838,7.52612709,203.15,203.11,0.69]
[1756544342545,41.34,203.16,203.11,0.69]
[1756544342745,7.52612709,203.15,203.1,7.52612709]
[1756544342947,7.52612709,203.15,203.11,0.69]
[1756544343171,7.52612709,203.15,203.12,0.69]
[1756544343569,7.52612709,203.16,203.12,0.69]
[1756544344368,7.52612709,203.15,203.12,0.69]
[1756544344588,7.52612709,203.16,203.12,0.69]
[1756544345351,46.2220086,203.17,203.07,0.69]
[1756544345352,7.52612709,203.13,203.07,0.69]
[1756544345564,12.4498803,203.1,203.05,8.21612709]
[1756544346071,12.4498803,203.1,203.06,0.69]
[1756544346878,7.52612709,203.07,202.98,0.69]
[1756544347179,7.52612709,203.05,202.98,0.69]
[1756544347348,7.52612709,203.05,202.98,8.21612709]
[1756544347663,7.52612709,203.05,202.98,0.69]
[1756544347869,48.82612709,203.05,202.98,8.21612709]
[1756544348649,53.75102243,203.05,202.98,8.21612709]
[1756544349971,53.75102243,203.05,202.98,0.69]
[1756544350348,60.24048935,203.05,202.91,17.38036341]
[1756544350543,60.24048935,203.05,202.97,8.21612709]
[1756544350544,54.07102243,203.05,202.97,8.21612709]
[1756544350970,54.07102243,203.05,202.97,0.69]
[1756544351275,53.83102243,203.05,202.97,8.21612709]
[1756544351653,53.85102243,203.05,202.97,8.21612709]
[1756544352376,46.32489534,203.05,202.97,8.21612709]
[1756544352582,53.81102243,203.05,202.97,8.21612709]
[1756544353765,12.45102243,203.05,202.97,8.21612709]
[1756544353963,12.45102243,203.05,202.9,34.216128]
[1756544353964,48.84612709,203.05,203.01,0.69]
[1756544354272,48.84612709,203.05,202.99,0.69]
[1756544355182,48.84612709,203.05,203.0,0.69]
[1756544355354,54.19102243,203.05,202.98,0.69]
[1756544355673,53.77102243,203.05,202.98,0.69]
[1756544355979,53.73102243,203.05,202.98,0.69]
[1756544357255,12.87102243,203.05,202.98,0.69]
[1756544357458,53.71102243,203.05,202.98,0.69]
[1756544357960,53.69102243,203.05,202.98,0.69]
[1756544359394,50.89016083,203.05,202.98,0.69]
[1756544359677,50.89016083,203.05,203.01,0.03]
[1756544360076,46.16489534,203.05,203.01,0.03]
[1756544360286,50.89016083,203.05,203.01,0.03]
[1756544360495,18.52048935,203.05,203.01,0.03]
[1756544360787,50.85016083,203.05,203.01,0.03]
[1756544361090,50.85016083,203.05,202.98,0.69]
[1756544361379,50.85016083,203.05,202.99,0.69]
[1756544361776,46.12489534,203.05,202.99,0.69]
[1756544361976,50.85016083,203.05,202.99,0.69]
[1756544362167,50.83016083,203.05,203.0,0.69]
[1756544362964,50.81016083,203.05,203.0,0.69]
[1756544363984,50.77016083,203.05,203.01,0.69]
[1756544364984,4.92489534,203.05,203.01,0.69]
[1756544365177,50.73016083,203.05,203.01,0.69]
[1756544365378,49.55855766,203.05,203.01,0.69]
[1756544365563,54.28382315,203.05,203.01,0.69]
[1756544366380,49.55855766,203.05,203.01,0.69]
[1756544366589,54.28382315,203.05,203.01,0.69]
[1756544366768,3.55366232,203.05,203.04,0.72]
[1756544366969,41.06,203.07,203.04,0.72]
[1756544367168,3.56588246,203.06,203.05,0.69]
[1756544367591,8.29114795,203.06,203.05,0.69]
[1756544368472,3.56588246,203.06,203.05,0.69]
[1756544369668,3.56588246,203.06,203.05,5.41526549]
[1756544369968,39.78526549,203.12,203.05,10.34016083]
[1756544370168,39.78526549,203.12,203.06,0.69]
[1756544370169,3.57677324,203.11,203.06,0.69]
[1756544370387,3.57677324,203.1,203.07,0.69]
[1756544370592,3.57677324,203.1,203.04,4.95511045]
[1756544370593,3.57677324,203.1,203.08,0.69]
[1756544370809,4.72526549,203.09,203.04,0.03]
[1756544371088,4.72526549,203.09,203.04,0.72]
[1756544371384,41.02,203.09,203.06,4.72526549]
[1756544371687,4.9227214,203.14,203.07,0.71]
[1756544371895,4.72526549,203.12,203.07,5.43526549]
[1756544372117,3.22509759,203.11,203.08,0.71]
[1756544372299,3.22509759,203.11,203.09,0.71]
[1756544372666,3.22509759,203.11,203.1,5.43526549]
[1756544372866,3.22509759,203.15,203.1,5.43526549]
[1756544373084,3.22509759,203.16,203.11,5.43526549]
[1756544373297,7.95036308,203.16,203.12,0.71]
[1756544373462,7.95036308,203.16,203.13,0.71]
[1756544373463,3.22509759,203.15,203.13,0.71]
[1756544374001,3.22509759,203.15,203.11,4.72526549]
[1756544374173,7.95036308,203.16,203.13,0.71]
[1756544374376,3.22509759,203.15,203.13,0.71]
[1756544374973,3.22509759,203.15,203.1,5.43526549]
[1756544375196,3.22509759,203.15,203.11,0.71]
[1756544375404,3.22509759,203.15,203.11,5.43526549]
[1756544375582,3.22509759,203.15,203.12,0.71]
[1756544375784,3.22509759,203.15,203.13,0.71]
[1756544375994,3.22509759,203.16,203.14,0.71]
[1756544376189,3.22509759,203.16,203.15,4.72526549]
[1756544376490,3.22509759,203.19,203.15,5.43526549]
[1756544376706,3.22509759,203.19,203.16,0.71]
[1756544376890,7.95036308,203.19,203.16,0.71]
[1756544377089,3.22509759,203.18,203.16,0.71]
[1756544377883,7.95036308,203.18,203.14,0.71]
[1756544378196,4.72526549,203.18,203.15,0.71]
[1756544378394,9.64698412,203.19,203.16,0.71]
[1756544378702,45.60526549,203.22,203.16,5.43526549]
[1756544378904,45.60526549,203.22,203.13,4.92293654]
[1756544378905,3.23222004,203.21,203.17,5.43526549]
[1756544379080,45.58526549,203.23,203.18,5.43526549]
[1756544379402,3.23082076,203.22,203.19,0.71]
[1756544379618,45.58526549,203.23,203.19,0.71]
[1756544379779,3.23078631,203.22,203.19,0.71]
[1756544380200,45.58526549,203.23,203.19,0.71]
[1756544380501,50.50584308,203.23,203.19,0.71]
[1756544380713,131.2729468,203.28,203.18,4.72526549]
[1756544380916,4.72526549,203.25,203.2,5.43526549]
[1756544381098,4.72526549,203.25,203.21,0.71]
[1756544381289,4.72526549,203.24,203.19,5.43526549]
[1756544381486,4.72526549,203.24,203.2,0.71]
[1756544381711,46.15970235,203.27,203.19,4.72526549]
[1756544381915,4.72526549,203.25,203.21,0.71]
[1756544382089,9.64541076,203.25,203.21,0.71]
[1756544382293,9.64541076,203.25,203.19,4.72526549]
[1756544382294,4.92014527,203.25,203.19,5.43526549]
[1756544382489,9.64541076,203.25,203.17,4.9217618]
[1756544382685,9.64541076,203.25,203.2,0.71]
[1756544382686,50.46541076,203.25,203.2,0.71]
[1756544382998,50.46541076,203.25,203.21,0.71]
[1756544383383,50.46541076,203.25,203.19,5.43526549]
[1756544384717,50.42541076,203.25,203.19,0.71]
[1756544385010,50.42541076,203.25,203.19,5.43526549]
[1756544385312,4.72526549,203.24,203.19,0.71]
[1756544385609,5.14526549,203.24,203.19,4.72526549]
[1756544385794,5.14526549,203.24,203.17,0.71]
[1756544385992,5.14526549,203.24,203.19,4.72526549]
[1756544386190,0.42,203.24,203.17,0.71]
[1756544386390,0.42,203.24,203.18,4.72526549]
[1756544386391,4.72526549,203.23,203.18,4.72526549]
[1756544386600,45.84526549,203.24,203.19,5.43526549]
[1756544386808,40.7,203.24,203.19,5.43526549]
[1756544387016,40.7,203.24,203.2,5.43526549]
[1756544387213,40.7,203.24,203.2,0.71]
[1756544387407,45.6203074,203.24,203.2,0.71]
[1756544388916,50.34557289,203.24,203.19,4.72526549]
[1756544389119,4.72526549,203.23,203.19,0.71]
[1756544389486,45.42526549,203.24,203.2,0.71]
[1756544389789,40.7,203.24,203.2,0.71]
[1756544390313,4.72526549,203.25,203.21,0.71]
[1756544390505,45.32526549,203.25,203.21,0.71]
[1756544390813,4.72526549,203.28,203.23,4.72526549]
[1756544391112,41.04,203.28,203.23,0.71]
[1756544391309,4.72526549,203.27,203.23,0.71]
[1756544391519,41.04,203.28,203.23,0.71]
[1756544391697,41.04,203.28,203.23,5.43526549]
[1756544392014,4.72526549,203.27,203.23,0.71]
[1756544392313,41.04,203.28,203.23,0.71]
[1756544392513,4.72526549,203.27,203.23,0.71]
[1756544392715,4.72526549,203.28,203.23,4.72526549]
[1756544393011,40.6,203.3,203.25,4.72526549]
[1756544393208,40.6,203.3,203.26,5.43526549]
[1756544393405,4.72526549,203.31,203.26,4.72526549]
[1756544393604,45.32526549,203.31,203.27,0.71]
[1756544393814,45.30526549,203.31,203.27,0.71]
[1756544394013,40.58,203.31,203.27,0.71]
[1756544394218,9.64397044,203.31,203.24,4.9202816]
[1756544394423,4.78526549,203.33,203.28,4.72526549]
[1756544394712,4.78526549,203.33,203.28,5.43526549]
[1756544394918,45.34526549,203.33,203.28,5.43526549]
[1756544395103,40.62,203.33,203.29,5.43526549]
[1756544395699,0.06,203.33,203.29,4.72526549]
[1756544395893,40.6,203.33,203.29,4.72526549]
[1756544396089,0.06,203.33,203.29,4.72526549]
[1756544396317,40.6,203.33,203.29,4.72526549]
[1756544396515,0.06,203.33,203.29,4.72526549]
[1756544396718,0.06,203.33,203.3,0.71]
[1756544397390,0.06,203.33,203.31,0.71]
[1756544397596,0.06,203.33,203.31,5.43526549]
[1756544397808,0.06,203.33,203.32,0.71]
[1756544398207,0.06,203.33,203.32,5.43526549]
[1756544399213,0.06,203.33,203.32,10.35362079]
[1756544400316,0.06,203.33,203.32,10.3536203]
[1756544400621,0.06,203.33,203.32,15.07888579]
[1756544400794,0.06,203.36,203.32,27.51693561]
[1756544400998,0.06,203.36,203.35,4.72526549]
[1756544401423,0.06,203.36,203.35,31.40526549]
[1756544401904,0.06,203.36,203.35,36.32289519]
[1756544402299,0.06,203.36,203.35,5.40526549]
[1756544402730,0.06,203.36,203.33,4.91798027]
[1756544402731,0.06,203.36,203.33,5.40526549]
[1756544402899,0.06,203.36,203.34,5.40526549]
[1756544403100,0.06,203.36,203.35,4.72526549]
[1756544403299,0.06,203.36,203.35,5.40526549]
[1756544404438,0.06,203.36,203.34,4.72526549]
[1756544405702,0.06,203.36,203.26,52.81904992]
[1756544405703,0.42,203.35,203.27,0.68]
[1756544405909,5.14526549,203.35,203.29,4.72526549]
[1756544406115,0.42,203.35,203.3,4.72526549]
[1756544406341,9.70276224,203.36,203.3,0.68]
[1756544406518,5.14526549,203.35,203.29,4.72526549]
[1756544406920,0.42,203.35,203.29,4.72526549]
[1756544407133,5.14526549,203.35,203.29,4.72526549]
[1756544407548,10.06303683,203.35,203.28,0.68]
[1756544407731,10.06303683,203.35,203.29,4.72526549]
[1756544407931,0.06,203.36,203.34,4.72526549]
[1756544408243,0.06,203.36,203.35,5.40526549]
[1756544408752,0.06,203.36,203.35,0.68]
[1756544409111,0.06,203.36,203.32,5.40526549]
[1756544409325,0.06,203.36,203.31,5.40526549]
[1756544409745,0.06,203.36,203.32,0.68]
[1756544410543,0.06,203.36,203.32,4.72526549]
[1756544410849,0.06,203.36,203.34,4.72526549]
[1756544411222,0.06,203.36,203.35,0.68]
[1756544412023,0.06,203.36,203.35,5.40526549]
[1756544412230,0.06,203.36,203.35,0.68]
[1756544412435,0.06,203.36,203.35,5.40526549]
[1756544412812,0.06,203.36,203.35,10.32289519]
[1756544415855,0.06,203.36,203.35,15.23859119]
[1756544416427,0.06,203.36,203.32,0.68]
[1756544416629,4.78526549,203.36,203.29,0.68]
[1756544416848,4.72526549,203.33,203.29,4.725266]
[1756544417041,4.72526549,203.33,203.26,0.68]
[1756544417042,5.14526549,203.33,203.27,4.72526549]
[1756544417864,5.14526549,203.33,203.28,0.03]
[1756544418043,4.72526549,203.35,203.3,4.72526549]
[1756544418238,0.42,203.34,203.29,4.72526549]
[1756544418446,4.72526549,203.35,203.29,4.72526549]
[1756544418654,4.72526549,203.34,203.29,4.72526549]
[1756544418835,4.72526549,203.34,203.29,5.40526549]
[1756544419040,4.72526549,203.34,203.28,4.75526549]
[1756544419260,4.91811341,203.33,203.28,4.75526549]
[1756544419461,4.91811341,203.33,203.28,5.43526549]
[1756544419965,4.91811341,203.33,203.29,0.68]
[1756544420259,4.72526549,203.34,203.29,0.68]
[1756544420462,4.72526549,203.34,203.29,5.40526549]
[1756544420963,0.48,203.36,203.29,5.40526549]
[1756544420964,4.72526549,203.35,203.3,0.68]
[1756544421163,9.64305198,203.35,203.3,0.68]
[1756544421366,4.72526549,203.33,203.28,5.43526549]
[1756544421743,4.72526549,203.33,203.28,4.75526549]
[1756544421943,4.72526549,203.33,203.29,0.68]
[1756544422460,5.33778649,203.35,203.29,0.68]
[1756544422651,4.72526549,203.34,203.3,0.68]
[1756544423442,9.64335037,203.34,203.3,0.68]
[1756544423852,4.72526549,203.33,203.28,0.71]
[1756544424051,4.72526549,203.33,203.28,0.03]
[1756544424250,4.72526549,203.34,203.29,0.68]
[1756544424845,4.72526549,203.34,203.3,0.68]
[1756544425047,0.06,203.36,203.31,0.68]
[1756544425354,0.06,203.36,203.32,5.40526549]
[1756544425663,0.06,203.36,203.32,0.68]
[1756544426256,0.06,203.36,203.31,4.72526549]
[1756544426449,0.06,203.36,203.32,0.68]
[1756544426970,0.06,203.36,203.32,5.40526549]
[1756544427171,0.06,203.36,203.32,0.68]
[1756544427545,0.06,203.36,203.31,4.72526549]
[1756544427741,5.14526549,203.35,203.29,5.40526549]
[1756544428364,4.72526549,203.35,203.29,5.40526549]
[1756544428744,4.72526549,203.33,203.29,0.68]
[1756544429164,4.72526549,203.34,203.29,0.68]
[1756544429645,4.72526549,203.34,203.28,4.75526549]
[1756544429646,4.72526549,203.34,203.3,0.68]
[1756544430176,9.64301671,203.35,203.3,0.68]
[1756544432072,4.72526549,203.34,203.3,0.68]
[1756544432256,4.91775122,203.35,203.3,0.68]
[1756544432452,4.72526549,203.34,203.3,0.68]
[1756544432784,4.72526549,203.34,203.31,0.68]
[1756544432957,4.72526549,203.34,203.28,0.03]
[1756544432958,10.06318971,203.34,203.28,0.71]
[1756544433143,4.72526549,203.3,203.28,0.03]
[1756544433347,4.72526549,203.29,203.28,0.03]
[1756544433571,8.37766859,203.29,203.28,0.03]
[1756544433773,8.37766859,203.29,203.2,0.03]
[1756544433975,4.72526549,203.21,203.2,0.03]
[1756544434850,5.11526549,203.21,203.2,0.03]
[1756544435285,10.03628315,203.21,203.2,0.03]
[1756544437557,31.58440536,203.21,203.2,0.03]
[1756544437759,31.72656693,203.21,203.2,0.03]
[1756544438751,3.22726271,203.21,203.2,0.03]
[1756544438951,4.72526549,203.21,203.2,0.03]
[1756544439163,4.72526549,203.23,203.2,0.03]
[1756544439684,5.11526549,203.23,203.2,0.03]
[1756544440058,4.72526549,203.22,203.2,0.03]
[1756544440367,4.72526549,203.21,203.2,0.03]
[1756544440752,5.11526549,203.21,203.2,0.03]
[1756544441349,7.94008059,203.21,203.2,0.03]
[1756544441645,5.31101766,203.21,203.2,0.03]
[1756544441844,7.55008059,203.22,203.2,0.03]
[1756544443668,7.55008059,203.21,203.2,0.03]
[1756544445474,7.94008059,203.21,203.2,0.03]
[1756544445652,12.86109825,203.21,203.2,0.03]
[1756544445847,26.45669226,203.21,203.2,0.03]
[1756544446052,52.59885383,203.21,203.2,0.03]
[1756544447873,96.07262516,203.21,203.2,0.03]
[1756544448258,92.85885383,203.21,203.2,0.03]
[1756544451690,13.73775558,203.2,203.17,0.03]
[1756544451873,21.1456746,203.18,203.17,0.03]
[1756544452077,61.3256746,203.18,203.17,0.03]
[1756544453184,53.77559401,203.18,203.17,0.03]
[1756544453390,80.30775558,203.18,203.17,0.03]
[1756544453560,87.85783617,203.18,203.17,0.03]
[1756544453763,92.77958043,203.18,203.17,0.03]
[1756544454161,84.83949984,203.18,203.17,0.03]
[1756544454393,92.32741886,203.18,203.17,0.03]
[1756544458892,92.22741886,203.18,203.17,0.03]
[1756544460397,1.9737,203.23,203.17,0.71]
[1756544460592,7.55008059,203.2,203.17,0.71]
[1756544460976,7.55008059,203.18,203.17,0.03]
[1756544461169,7.55008059,203.18,203.17,0.7]
[1756544461471,4.71827358,203.18,203.17,0.7]
[1756544462077,4.71827358,203.2,203.17,0.7]
[1756544462367,4.71827358,203.21,203.17,0.7]
[1756544462566,4.71827358,203.2,203.18,0.67]
[1756544462764,4.71827358,203.19,203.18,0.67]
[1756544462987,40.2,203.2,203.17,0.03]
[1756544463194,4.71827358,203.18,203.17,0.7]
[1756544464001,9.64001784,203.18,203.17,0.03]
[1756544464208,4.71827358,203.18,203.17,0.7]
[1756544464378,40.22,203.19,203.17,0.7]
[1756544464577,44.93827358,203.21,203.17,0.7]
[1756544464775,40.22,203.21,203.18,0.67]
[1756544465085,4.71827358,203.19,203.17,0.03]
[1756544465278,4.71827358,203.19,203.18,0.67]
[1756544465485,9.639779,203.19,203.17,0.03]
[1756544465683,4.71827358,203.18,203.17,0.03]
[1756544465885,4.71827358,203.18,203.17,0.7]
[1756544466694,4.92150542,203.19,203.17,0.7]
[1756544466872,9.639779,203.19,203.17,0.7]
[1756544467075,4.71827358,203.18,203.17,0.03]
[1756544467577,4.92146601,203.2,203.17,0.03]
[1756544467776,4.71827358,203.18,203.17,0.03]
[1756544467994,18.31386759,203.18,203.17,0.03]
[1756544468987,23.23561185,203.18,203.17,0.03]
[1756544469181,63.37561185,203.18,203.17,0.03]
[1756544472002,58.65733827,203.18,203.17,0.03]
[1756544472598,63.37561185,203.18,203.17,0.03]
[1756544473193,66.60140423,203.18,203.17,0.03]
[1756544474302,67.1335658,203.18,203.17,0.03]
[1756544476788,26.9935658,203.18,203.17,0.03]
[1756544477004,67.0135658,203.18,203.17,0.03]
[1756544477229,66.6235658,203.18,203.17,0.03]
[1756544477907,61.90529222,203.18,203.17,0.03]
[1756544478091,70.6165126,203.18,203.17,0.03]
[1756544478488,13.59559401,203.17,203.15,0.03]
[1756544478694,61.51965997,203.16,203.15,0.03]
[1756544478999,66.44188875,203.16,203.15,0.03]
[1756544479187,70.49022834,203.16,203.15,0.03]
[1756544479390,66.44188875,203.16,203.15,0.03]
[1756544479604,70.49022834,203.16,203.15,0.03]
[1756544480399,3.22579238,203.16,203.15,0.7]
[1756544480729,3.22579238,203.17,203.15,0.7]
[1756544481018,3.22579238,203.18,203.15,0.7]
[1756544481515,3.24091987,203.18,203.15,0.7]
[1756544482516,3.24091987,203.18,203.15,5.41827358]
[1756544482815,3.24091987,203.19,203.16,0.67]
[1756544483205,4.71827358,203.18,203.16,0.67]
[1756544483407,3.24091987,203.17,203.16,0.67]
[1756544483628,13.59559401,203.16,203.15,0.03]
[1756544483832,65.70732743,203.16,203.15,0.03]
[1756544485116,70.62955621,203.16,203.15,0.03]
[1756544486410,30.66955621,203.16,203.15,0.03]
[1756544486609,70.62955621,203.16,203.15,0.03]
[1756544486814,71.01955621,203.16,203.15,0.03]
[1756544487016,66.96917781,203.16,203.15,0.03]
[1756544487226,26.0,203.13,203.09,0.67]
[1756544487420,4.71827358,203.1,203.09,0.67]
[1756544487723,44.67827358,203.1,203.04,4.71827358]
[1756544488104,39.96,203.1,203.04,4.71827358]
[1756544488304,44.67827358,203.1,203.05,0.67]
[1756544488608,49.60201496,203.1,203.05,0.67]
[1756544488810,7.95886143,203.09,203.05,0.67]
[1756544488998,49.60201496,203.1,203.05,0.67]
[1756544489200,3.24099931,203.09,203.05,0.67]
[1756544489722,3.24099931,203.09,203.05,5.38827358]
[1756544489925,3.24099931,203.09,203.06,0.67]
[1756544490304,7.95927289,203.09,203.06,0.67]
[1756544490502,4.71827358,203.09,203.06,0.67]
[1756544490805,49.60197413,203.1,203.06,0.67]
[1756544491019,3.23870765,203.09,203.06,0.67]
[1756544491215,44.67827358,203.1,203.06,0.67]
[1756544491426,44.67827358,203.1,203.07,0.71]
[1756544491612,4.71827358,203.09,203.07,0.71]
[1756544491813,4.71827358,203.09,203.08,0.71]
[1756544492215,39.96,203.1,203.08,0.71]
[1756544492414,39.96,203.1,203.09,0.71]
[1756544492724,47.91610983,203.1,203.09,0.71]
[1756544492928,43.19783625,203.1,203.09,0.71]
[1756544493530,47.91610983,203.1,203.09,0.71]
[1756544494227,4.71827358,203.17,203.09,5.42827358]
[1756544494429,7.9570953,203.16,203.11,4.71827358]
[1756544494749,44.88173071,203.19,203.12,5.42827358]
[1756544494912,4.71827358,203.17,203.13,0.71]
[1756544495118,7.95724563,203.16,203.13,0.71]
[1756544495334,4.71827358,203.16,203.13,0.71]